bitfinex/quotes_SOLUSD_20240814
["timestamp","ask_amount","ask_price","bid_price","bid_amount"]
[1723601935400,6.8995,144.94,144.89,22.6251]
[1723601935811,6.8998,144.93,144.89,22.6251]
[1723601936007,8.62502492,144.93,144.89,22.6251]
[1723601936328,6.9005,144.92,144.86,6.1568]
[1723601936630,6.8999,144.93,144.88,6.9017]
[1723601937222,6.8993,144.95,144.86,6.1568]
[1723601937609,76.99,144.96,144.86,6.1568]
[1723601937610,6.8994,144.94,144.9,6.9012]
[1723601938009,6.899,144.95,144.9,6.9012]
[1723601938417,6.8996,144.94,144.89,6.9017]
[1723601939133,6.899,144.95,144.86,6.1568]
[1723601939331,7.21057823,144.97,144.92,6.9003]
[1723601939539,6.8985,144.96,144.91,6.9007]
[1723601939736,6.899,144.95,144.9,6.9012]
[1723601939912,6.8995,144.94,144.9,6.9012]
[1723601940250,6.899,144.95,144.9,6.9012]
[1723601940610,6.899,144.95,144.91,6.9007]
[1723601941712,31.99,144.98,144.92,6.9002]
[1723601941914,6.8984,144.96,144.92,6.9002]
[1723601942131,38.8878,144.98,144.93,6.8998]
[1723601942335,6.898,144.97,144.92,6.9002]
[1723601942544,6.8985,144.96,144.92,6.9002]
[1723601942726,6.8985,144.96,144.91,23.3793]
[1723601943234,6.8989,144.95,144.91,16.4786]
[1723601943436,6.8995,144.94,144.91,16.4786]
[1723601943827,6.899,144.95,144.91,16.4786]
[1723601944014,6.899,144.95,144.91,23.3793]
[1723601946330,19.7085,144.96,144.91,23.3793]
[1723601946714,12.81,144.96,144.92,6.9003]
[1723601946922,7.46058728,144.99,144.93,6.8996]
[1723601946923,12.81,144.98,144.93,6.8996]
[1723601947121,6.898,144.97,144.93,6.8996]
[1723601947846,12.81,144.98,144.91,23.0758]
[1723601948050,16.0542,145.04,144.96,6.898]
[1723601948249,6.8969,145.0,144.94,6.8989]
[1723601948822,19.7069,145.0,144.94,6.8989]
[1723601949018,19.7069,145.0,144.91,35.8858]
[1723601949239,19.7069,145.0,144.95,6.8988]
[1723601949949,6.8969,145.0,144.95,6.8988]
[1723601950249,6.897,144.99,144.95,6.8988]
[1723601950840,6.8966,145.0,144.95,6.8988]
[1723601951048,6.8971,144.99,144.95,6.8988]
[1723601951548,6.8977,144.98,144.92,20.0]
[1723601951749,6.8976,144.98,144.93,6.8997]
[1723601952431,6.898,144.97,144.93,6.8997]
[1723601952830,32.01,145.0,144.94,6.8993]
[1723601954852,6.8976,144.98,144.94,6.8993]
[1723601955053,32.01,145.02,144.91,23.0758]
[1723601955234,6.8964,145.01,144.96,6.8981]
[1723601956057,6.8964,145.01,144.97,6.8978]
[1723601956528,6.8964,145.01,144.96,6.8983]
[1723601958057,6.8964,145.01,144.97,6.8978]
[1723601958433,42.04186803,145.04,144.97,13.4058]
[1723601958434,6.8956,145.02,144.97,13.4058]
[1723601958759,6.8962,145.01,144.97,13.4058]
[1723601959250,6.8957,145.02,144.97,13.4058]
[1723601959841,6.8961,145.01,144.97,6.508]
[1723601961956,6.8955,145.03,144.98,6.8974]
[1723601962153,7.2075205,145.05,144.97,6.508]
[1723601962457,34.3872302,145.08,145.0,6.8964]
[1723601962458,50.0602302,145.08,145.0,6.8964]
[1723601962643,6.894,145.06,145.0,6.8964]
[1723601963041,6.8944,145.05,145.0,6.8964]
[1723601964056,6.8947,145.04,144.99,6.8969]
[1723601964951,6.8947,145.04,145.0,0.72769095]
[1723601965341,6.8937,145.06,145.02,15.2317]
[1723601965649,6.8937,145.06,145.02,15.95929059]
[1723601965959,6.8942,145.05,145.02,15.2317]
[1723601969659,6.8946,145.05,145.02,15.2317]
[1723601969866,6.8951,145.03,145.02,15.2317]
[1723601970157,6.8947,145.04,145.02,15.2317]
[1723601970555,19.6942,145.05,145.02,15.2317]
[1723601972053,6.8937,145.06,145.02,15.2317]
[1723601972263,6.8942,145.05,145.02,15.2317]
[1723601973441,6.8946,145.04,145.02,15.2317]
[1723601974367,6.8951,145.03,145.02,15.2317]
[1723601974575,6.8956,145.02,144.98,23.2653]
[1723601974864,6.8956,145.02,144.98,16.3679]
[1723601975255,6.8956,145.02,144.98,23.2652]
[1723601975471,6.8952,145.03,144.98,23.2652]
[1723601975644,6.8952,145.03,144.99,6.8969]
[1723601975968,19.6946,145.04,144.99,6.8969]
[1723601976167,6.8952,145.03,144.98,23.2653]
[1723601976853,19.6947,145.04,144.99,6.897]
[1723601977256,6.8952,145.03,144.98,16.3679]
[1723601977455,6.8956,145.02,144.98,16.3679]
[1723601977863,19.6956,145.02,144.98,16.3679]
[1723601978245,7.20898234,145.06,144.98,16.3679]
[1723601978473,12.8,145.02,144.98,16.3679]
[1723601978772,19.6966,145.0,144.97,6.508]
[1723601979164,12.8,145.0,144.94,15.8379]
[1723601979551,12.8,145.0,144.96,6.898]
[1723601980253,19.6965,145.0,144.95,6.8988]
[1723601981563,12.8,145.0,144.96,6.8983]
[1723601981972,19.6966,145.0,144.96,6.8983]
[1723601982279,19.6966,145.0,144.95,6.8988]
[1723601983077,6.8976,144.98,144.94,22.7371]
[1723601983265,12.8,145.0,144.94,22.7371]
[1723601983583,6.8973,144.99,144.94,22.7371]
[1723601984277,6.8975,144.98,144.94,22.7371]
[1723601984571,6.8994,144.94,144.9,28.6726]
[1723601984775,6.899,144.95,144.91,6.9007]
[1723601984978,8.62392289,144.95,144.91,6.9007]
[1723601985181,1.72492289,144.95,144.9,21.7714]
[1723601985552,19.6994,144.94,144.9,21.7714]
[1723601986170,19.6994,144.94,144.9,28.6726]
[1723601986375,12.8,144.94,144.9,28.6726]
[1723601988283,14.52507034,144.94,144.87,15.9884]
[1723601988583,1.72517962,144.93,144.87,15.9884]
[1723601988786,12.8,144.92,144.87,15.9884]
[1723601988953,19.7016,144.9,144.87,15.9884]
[1723601989875,6.9021,144.89,144.86,6.3122]
[1723601990067,14.52576826,144.88,144.83,22.893]
[1723601990294,12.8,144.88,144.83,22.893]
[1723601991149,19.7023,144.88,144.83,22.893]
[1723601991468,12.8,144.88,144.84,6.904]
[1723601991667,12.8,144.88,144.85,6.9035]
[1723601993088,12.8,144.88,144.84,6.904]
[1723601996391,19.7014,144.9,144.85,6.9035]
[1723601996600,19.7026,144.88,144.83,22.8929]
[1723601997885,6.9029,144.87,144.83,15.9884]
[1723601998581,6.9029,144.87,144.83,22.8929]
[1723601999492,19.7023,144.88,144.83,22.8929]
[1723602000586,12.8,144.88,144.84,6.9039]
[1723602001095,12.8,144.9,144.85,6.9036]
[1723602001295,19.7014,144.9,144.85,6.9036]
[1723602001462,33.2825,144.96,144.84,0.12549]
[1723602001665,33.2825,144.96,144.88,6.9021]
[1723602001666,19.6999,144.93,144.88,6.9021]
[1723602002156,12.8,144.93,144.84,0.37647]
[1723602002360,6.9014,144.9,144.86,6.9031]
[1723602002562,6.9014,144.9,144.85,6.9035]
[1723602003571,6.9018,144.89,144.85,6.9035]
[1723602003790,6.9023,144.88,144.83,22.8926]
[1723602004099,19.7018,144.89,144.84,6.9039]
[1723602004991,6.903,144.87,144.83,15.9884]
[1723602005202,19.7038,144.85,144.8,6.9059]
[1723602005485,19.7038,144.85,144.81,6.9055]
[1723602005785,12.8,144.85,144.81,6.9055]
[1723602006364,19.7028,144.87,144.79,15.8598]
[1723602006568,12.8,144.89,144.8,0.12549]
[1723602006872,12.8,144.91,144.87,6.9025]
[1723602007195,6.9004,144.92,144.87,6.9025]
[1723602007394,6.9009,144.91,144.86,6.9031]
[1723602008691,6.9013,144.9,144.86,6.9031]
[1723602009074,6.9013,144.9,144.83,16.3111]
[1723602009505,6.9009,144.91,144.86,6.9031]
[1723602011976,6.9009,144.91,144.87,6.9027]
[1723602012993,6.9009,144.91,144.86,6.9031]
[1723602013192,6.9013,144.9,144.86,6.9031]
[1723602013394,6.9013,144.9,144.83,16.3111]
[1723602013900,6.9008,144.91,144.83,16.3111]
[1723602014375,6.9013,144.9,144.85,6.9036]
[1723602014572,6.9018,144.89,144.84,6.904]
[1723602015296,32.05,144.89,144.83,16.3111]
[1723602015597,33.77597839,144.89,144.83,16.3111]
[1723602015903,6.9032,144.86,144.83,16.3111]
[1723602017179,6.9028,144.87,144.83,16.3111]
[1723602019089,6.9034,144.86,144.83,16.3111]
[1723602019388,6.9027,144.87,144.83,16.3111]
[1723602019602,6.9033,144.86,144.83,16.3111]
[1723602019988,32.05,144.89,144.83,16.3111]
[1723602020189,6.9027,144.87,144.83,16.3111]
[1723602021385,6.9033,144.86,144.83,16.3111]
[1723602022688,32.05,144.85,144.79,15.0975]
[1723602022886,6.9053,144.82,144.79,15.0975]
[1723602023085,6.9057,144.81,144.79,15.0975]
[1723602023289,6.9052,144.82,144.78,6.6326]
[1723602023578,6.9057,144.81,144.76,6.9078]
[1723602024187,32.05,144.83,144.77,6.9074]
[1723602024188,6.9052,144.82,144.77,6.9074]
[1723602025079,6.9056,144.81,144.75,21.4538]
[1723602025286,38.956,144.81,144.75,28.3618]
[1723602025607,38.956,144.81,144.76,6.9079]
[1723602025907,6.906,144.8,144.76,6.9079]
[1723602026625,38.9556,144.81,144.76,6.9079]
[1723602026913,32.05,144.83,144.75,21.4538]
[1723602027204,32.05,144.83,144.78,6.9069]
[1723602027205,20.0,144.82,144.78,6.9069]
[1723602027888,26.9052,144.82,144.77,6.9074]
[1723602028401,26.9052,144.82,144.78,6.907]
[1723602028599,26.9052,144.82,144.77,6.9074]
[1723602030905,6.9063,144.8,144.75,21.4538]
[1723602031111,6.9063,144.8,144.75,28.362]
[1723602033902,6.9065,144.79,144.75,28.362]
[1723602034089,6.9065,144.79,144.75,21.4538]
[1723602034511,6.9065,144.79,144.75,28.3622]
[1723602034712,38.9556,144.81,144.76,6.9077]
[1723602034918,6.9056,144.81,144.76,6.9077]
[1723602035915,20.0,144.82,144.77,6.9074]
[1723602036115,26.9051,144.82,144.77,6.9074]
[1723602036314,20.0,144.82,144.78,6.9066]
[1723602036515,26.9051,144.82,144.77,6.9073]
[1723602037331,15.0507,144.89,144.76,0.12549]
[1723602037615,6.9028,144.87,144.82,6.905]
[1723602037918,6.0857976,144.92,144.76,65.86451932]
[1723602037919,32.05,144.92,144.83,0.36238408]
[1723602038124,6.9013,144.9,144.85,6.9033]
[1723602038617,6.9018,144.89,144.85,6.9033]
[1723602038819,6.9014,144.9,144.85,6.9033]
[1723602039420,6.9009,144.91,144.86,7.26540903]
[1723602039721,6.9009,144.91,144.86,6.9031]
[1723602039722,20.0,144.9,144.86,6.9031]
[1723602039925,6.9013,144.9,144.85,6.9036]
[1723602040497,6.9019,144.89,144.84,6.9041]
[1723602041030,32.05,144.9,144.81,22.4375]
[1723602041211,33.77565636,144.88,144.81,22.4375]
[1723602041719,6.9033,144.86,144.81,22.4375]
[1723602042015,6.9027,144.87,144.82,6.905]
[1723602042219,6.9022,144.88,144.83,6.9042]
[1723602044629,6.9022,144.88,144.84,6.9041]
[1723602045425,6.9022,144.88,144.83,6.9046]
[1723602046229,6.9023,144.88,144.84,6.904]
[1723602047024,26.9019,144.89,144.84,6.904]
[1723602048811,20.0,144.89,144.81,15.5323]
[1723602049408,6.9031,144.87,144.81,15.5323]
[1723602049627,6.9022,144.88,144.83,6.9045]
[1723602051298,26.9019,144.89,144.84,6.9039]
[1723602051499,6.9013,144.9,144.81,15.5323]
[1723602051731,6.9013,144.9,144.85,6.9036]
[1723602053320,6.902,144.89,144.84,6.9041]
[1723602054224,32.05,144.92,144.81,15.5323]
[1723602054430,32.05,144.92,144.84,6.9038]
[1723602054431,6.9017,144.89,144.84,6.9038]
[1723602056136,6.9012,144.91,144.82,0.12549]
[1723602056337,20.0,144.9,144.82,0.37647]
[1723602056525,20.0,144.9,144.85,6.9036]
[1723602057024,20.0,144.91,144.85,6.9036]
[1723602057336,6.9018,144.89,144.84,6.9041]
[1723602058432,6.9035,144.86,144.81,22.4375]
[1723602058636,6.9035,144.86,144.82,6.905]
[1723602058838,6.9035,144.86,144.81,15.5323]
[1723602058839,6.9035,144.86,144.81,22.4377]
[1723602059334,6.9035,144.86,144.82,6.905]
[1723602059637,6.9028,144.87,144.83,6.9046]
[1723602059817,6.9022,144.88,144.83,6.9046]
[1723602060358,32.05,144.9,144.85,6.9034]
[1723602060359,6.9014,144.9,144.85,6.9034]
[1723602061225,20.0,144.91,144.85,6.9035]
[1723602061425,6.9013,144.9,144.85,6.9035]
[1723602062532,6.902,144.89,144.84,6.904]
[1723602063244,33.77570803,144.9,144.81,15.5323]
[1723602063451,6.9031,144.87,144.81,15.5323]
[1723602064236,39.39029039,144.9,144.83,6.9045]
[1723602064418,41.11628693,144.9,144.83,6.9045]
[1723602064630,1.72599905,144.89,144.83,6.9045]
[1723602064941,0.12549,144.89,144.83,6.9045]
[1723602065242,46.16650039,144.9,144.85,6.9035]
[1723602065546,6.9017,144.9,144.85,6.9035]
[1723602065746,26.9008,144.91,144.83,6.0222]
[1723602065933,6.9008,144.91,144.83,6.0222]
[1723602066240,20.0,144.9,144.83,6.0222]
[1723602066850,32.05,144.94,144.84,0.12549]
[1723602067061,6.8999,144.93,144.88,6.9021]
[1723602067229,20.0,144.92,144.88,6.9021]
[1723602067428,26.9004,144.92,144.88,6.9021]
[1723602067641,26.9004,144.92,144.87,6.9026]
[1723602067642,20.0,144.92,144.87,6.9026]
[1723602067946,32.05,144.94,144.84,16.1428]
[1723602068149,26.9003,144.93,144.87,6.9026]
[1723602068337,6.9004,144.92,144.87,6.9026]
[1723602073252,6.9009,144.91,144.87,6.9026]
[1723602073550,20.0,144.93,144.84,16.1428]
[1723602073758,21.85099215,144.94,144.84,16.1428]
[1723602073932,77.05,144.93,144.84,16.1428]
[1723602074119,32.17549,144.91,144.84,16.1428]
[1723602074324,6.9031,144.87,144.84,16.1428]
[1723602075058,6.9022,144.88,144.84,16.1428]
[1723602075268,6.9022,144.88,144.84,23.0468]
[1723602075549,6.9009,144.91,144.86,6.9031]
[1723602075748,20.0,144.92,144.86,6.9031]
[1723602077039,6.9013,144.9,144.86,6.9031]
[1723602077260,8.62742691,144.89,144.84,16.1428]
[1723602077566,6.9019,144.89,144.85,6.9035]
[1723602077940,6.9013,144.9,144.85,6.9035]
[1723602078160,20.0,144.92,144.84,16.1428]
[1723602078466,6.9019,144.89,144.84,23.0467]
[1723602080869,6.9013,144.9,144.85,6.9035]
[1723602083768,20.0,144.92,144.88,6.9021]
[1723602084465,26.9004,144.92,144.87,6.9026]
[1723602085162,6.9012,144.91,144.86,6.9031]
[1723602085370,6.9013,144.9,144.85,6.9035]
[1723602085672,6.9024,144.88,144.84,23.0468]
[1723602085843,6.9018,144.89,144.84,23.0468]
[1723602086743,6.9014,144.9,144.86,6.903]
[1723602087963,19.7214,144.9,144.86,6.903]
[1723602088575,12.82,144.93,144.84,16.1428]
[1723602088775,19.72,144.93,144.88,6.902]
[1723602090268,12.82,144.93,144.89,6.9015]
[1723602090471,6.8994,144.94,144.85,12.82]
[1723602090658,6.8994,144.94,144.89,6.9016]
[1723602091871,6.8983,144.97,144.92,6.9002]
[1723602092253,12.82,144.98,144.93,6.8997]
[1723602092448,6.898,144.97,144.92,6.9002]
[1723602092968,19.7185,144.96,144.9,15.0877]
[1723602093182,19.7185,144.96,144.91,6.9006]
[1723602093861,6.8985,144.96,144.91,6.9006]
[1723602094046,6.8989,144.95,144.91,6.9006]
[1723602094746,32.03,144.92,144.86,16.2452]
[1723602095164,6.9027,144.87,144.84,6.6216]
[1723602095480,32.03,144.88,144.82,16.2452]
[1723602095774,6.9044,144.84,144.8,6.5209]
[1723602096548,6.9037,144.85,144.8,13.4269]
[1723602096852,38.9332,144.86,144.81,6.9055]
[1723602097052,32.03,144.86,144.81,6.9055]
[1723602097346,38.9323,144.88,144.8,6.5209]
[1723602097572,26.9027,144.87,144.81,6.9051]
[1723602097753,26.9027,144.87,144.8,13.4269]
[1723602097754,6.9037,144.85,144.8,13.4269]
[1723602097959,6.9037,144.85,144.8,6.5209]
[1723602098157,6.9037,144.85,144.8,13.4268]
[1723602098670,32.03,144.86,144.8,13.4268]
[1723602098671,38.9332,144.86,144.8,13.4268]
[1723602098853,38.9332,144.86,144.81,6.9052]
[1723602099971,6.9038,144.85,144.8,13.4269]
[1723602100684,38.9332,144.86,144.81,6.9055]
[1723602101586,38.9332,144.86,144.82,6.905]
[1723602103087,38.9332,144.86,144.8,6.5209]
[1723602103088,20.0,144.87,144.83,6.9045]
[1723602103955,20.0,144.87,144.8,6.5209]
[1723602103956,20.0,144.87,144.84,6.904]
[1723602104158,6.9019,144.89,144.84,6.904]
[1723602104473,20.0,144.88,144.84,6.904]
[1723602106267,6.9019,144.89,144.85,6.9036]
[1723602106669,6.9019,144.89,144.84,22.4098]
[1723602107169,32.03,144.9,144.84,15.5058]
[1723602107367,20.0,144.89,144.84,15.5058]
[1723602107677,6.9023,144.88,144.84,15.5058]
[1723602107887,6.9032,144.86,144.84,15.5058]
[1723602108094,6.9037,144.85,144.8,29.7156]
[1723602108760,6.9037,144.85,144.81,6.9055]
[1723602109155,38.9333,144.86,144.8,22.81]
[1723602109362,32.03,144.88,144.83,6.9045]
[1723602109585,6.9023,144.88,144.84,6.904]
[1723602109885,6.9023,144.88,144.8,22.81]
[1723602110068,6.9023,144.88,144.83,6.9046]
[1723602110856,26.9019,144.89,144.84,6.9041]
[1723602111857,6.9023,144.88,144.84,6.9041]
[1723602112265,6.9023,144.88,144.83,6.9045]
[1723602113281,6.9028,144.87,144.83,6.9045]
[1723602113484,6.9028,144.87,144.82,6.905]
[1723602114205,6.904,144.85,144.8,22.81]
[1723602114407,6.904,144.85,144.8,29.7157]
[1723602114581,33.7561794,144.88,144.82,6.9049]
[1723602114897,6.9028,144.87,144.8,22.81]
[1723602115268,6.9032,144.86,144.82,6.9049]
[1723602115897,6.9028,144.87,144.82,6.9049]
[1723602116999,38.9323,144.88,144.83,6.9045]
[1723602117209,6.9023,144.88,144.83,6.9045]
[1723602118099,20.0,144.89,144.82,6.905]
[1723602118100,6.9029,144.87,144.82,6.905]
[1723602119374,6.9034,144.86,144.8,22.81]
[1723602119589,32.03,144.86,144.8,22.81]
[1723602119774,6.9043,144.84,144.8,22.81]
[1723602119976,6.9043,144.84,144.8,29.716]
[1723602120999,6.9038,144.85,144.81,6.9055]
[1723602122304,38.9333,144.86,144.81,6.9055]
[1723602123107,0.12549,144.87,144.81,1.27616024]
[1723602123407,0.12549,144.87,144.8,29.7159]
[1723602123408,32.03,144.86,144.8,29.7159]
[1723602123711,6.9045,144.84,144.8,22.81]
[1723602123885,1.72648888,144.83,144.8,22.81]
[1723602124086,6.9045,144.84,144.8,22.81]
[1723602124283,32.03,144.82,144.76,21.4882]
[1723602124586,6.9033,144.86,144.81,6.9055]
[1723602124793,26.9037,144.85,144.8,6.906]
[1723602124991,20.0,144.85,144.76,21.4882]
[1723602125191,20.0,144.86,144.82,6.9051]
[1723602125402,26.9033,144.86,144.81,6.9055]
[1723602126295,20.0,144.86,144.82,6.9049]
[1723602127606,20.0,144.86,144.76,21.4882]
[1723602127796,26.9032,144.86,144.81,6.9052]
[1723602127998,12.83,144.85,144.81,6.9052]
[1723602128988,1.72637417,144.84,144.8,6.906]
[1723602129406,19.7337,144.85,144.8,6.906]
[1723602130112,1.72644854,144.84,144.8,6.906]
[1723602130612,19.7337,144.85,144.8,6.906]
[1723602131916,12.83,144.85,144.81,6.9055]
[1723602132211,26.9032,144.86,144.78,0.12549]
[1723602132212,20.0,144.86,144.78,0.12549]
[1723602132415,20.0,144.86,144.78,0.37647]
[1723602132715,20.0,144.86,144.82,6.9049]
[1723602133216,14.55622,144.85,144.77,20.0]
[1723602133393,12.83,144.85,144.77,20.0]
[1723602133716,19.7339,144.85,144.8,6.9056]
[1723602135318,12.83,144.85,144.77,20.0]
[1723602135519,12.83,144.85,144.78,0.37647]
[1723602136012,20.0,144.86,144.78,0.37647]
[1723602136211,12.83,144.87,144.83,6.9046]
[1723602136417,19.7328,144.87,144.82,6.905]
[1723602138216,7.21402772,144.89,144.79,12.83]
[1723602138399,20.0,144.88,144.84,6.9038]
[1723602140897,16.5786,144.9,144.85,6.9033]
[1723602141097,26.41490664,144.93,144.85,12.83]
[1723602141295,6.9003,144.93,144.88,6.9021]
[1723602142933,0.12549,144.93,144.83,12.83]
[1723602143219,12.83,144.9,144.85,6.9033]
[1723602143526,6.9018,144.89,144.84,6.904]
[1723602144319,19.7313,144.9,144.85,6.9033]
[1723602144502,6.9028,144.87,144.82,6.9051]
[1723602144710,6.9018,144.89,144.84,6.9037]
[1723602144906,6.9018,144.89,144.81,22.3022]
[1723602144907,19.7313,144.9,144.85,6.9035]
[1723602145122,6.9008,144.91,144.86,6.903]
[1723602148326,19.7313,144.9,144.85,6.9036]
[1723602148533,6.9021,144.89,144.84,6.9038]
[1723602148710,12.83,144.9,144.81,35.1322]
[1723602148711,12.83,144.88,144.83,6.9046]
[1723602149033,12.83,144.88,144.85,6.9036]
[1723602149336,19.7314,144.9,144.85,6.9036]
[1723602149837,12.83,144.9,144.86,6.9031]
[1723602151746,19.7313,144.9,144.85,6.9036]
[1723602153333,6.9018,144.89,144.85,6.9036]
[1723602153527,19.7314,144.9,144.86,6.9031]
[1723602154331,19.7314,144.9,144.85,6.9035]
[1723602155345,6.9014,144.9,144.85,6.9035]
[1723602155542,6.9014,144.9,144.82,0.86786934]
[1723602155731,6.9014,144.9,144.83,0.86780948]
[1723602156924,6.9014,144.9,144.85,6.9035]
[1723602159050,6.9014,144.9,144.86,6.9032]
[1723602159752,6.9004,144.92,144.88,6.9022]
[1723602159925,20.0,144.91,144.88,6.9022]
[1723602160129,6.9004,144.92,144.88,6.9022]
[1723602160851,32.83,144.93,144.89,6.9017]
[1723602161029,32.83,144.93,144.84,0.86736127]
[1723602162965,6.9006,144.92,144.87,6.9026]
[1723602163158,20.0,144.93,144.89,6.9016]
[1723602163346,6.8995,144.94,144.89,6.9016]
[1723602166350,6.8998,144.93,144.89,6.9016]
[1723602168458,12.83,144.91,144.86,21.6539]
[1723602168660,6.9019,144.89,144.86,15.4322]
[1723602168829,1.72570695,144.89,144.86,15.4322]
[1723602169030,19.7312,144.91,144.86,22.3354]
[1723602169540,19.7312,144.91,144.87,6.9027]
[1723602169744,0.12549,144.95,144.88,6.902]
[1723602169956,39.7302,144.93,144.88,6.902]
[1723602171133,6.9004,144.92,144.88,6.902]
[1723602175159,6.9004,144.92,144.87,6.9026]
[1723602175467,6.901,144.91,144.87,6.9026]
[1723602175853,33.08098,144.93,144.88,6.9021]
[1723602175854,6.9004,144.92,144.88,6.9021]
[1723602178242,6.9004,144.92,144.87,6.9026]
[1723602179267,19.7304,144.92,144.87,6.9026]
[1723602182741,19.7304,144.92,144.88,6.902]
[1723602183144,12.83,144.92,144.88,6.902]
[1723602184241,20.25098,144.93,144.89,6.9015]
[1723602184441,20.12549,144.93,144.89,6.9015]
[1723602186566,27.02549,144.93,144.89,6.9015]
[1723602187069,20.0,144.93,144.89,6.9015]
[1723602187258,20.0,144.93,144.86,15.4322]
[1723602187470,20.0,144.93,144.89,6.9016]
[1723602187766,26.8999,144.93,144.89,6.9016]
[1723602188137,20.0,144.93,144.9,6.9012]
[1723602188648,26.8999,144.93,144.89,6.14]
[1723602189048,6.9004,144.92,144.89,6.14]
[1723602191251,12.83,144.95,144.9,6.9011]
[1723602191569,20.0,144.94,144.9,6.9011]
[1723602192763,6.9,144.93,144.89,13.0416]
[1723602194078,26.8995,144.94,144.89,13.0416]
[1723602195376,6.9001,144.93,144.89,13.0416]
[1723602196547,12.83,144.92,144.86,15.4322]
[1723602196748,14.55528677,144.92,144.86,22.3353]
[1723602196965,6.9018,144.89,144.86,15.4322]
[1723602197283,8.62795907,144.88,144.82,35.5857]
[1723602197582,6.9018,144.89,144.84,6.904]
[1723602197763,6.9018,144.89,144.85,6.9036]
[1723602200083,19.7314,144.9,144.85,6.9036]
[1723602200285,19.7314,144.9,144.86,6.903]
[1723602200515,12.83,144.9,144.86,6.903]
[1723602201481,26.8995,144.94,144.9,6.9012]
[1723602201785,26.8995,144.94,144.83,0.12549]
[1723602201786,20.0,144.93,144.89,6.9016]
[1723602202090,34.00126454,144.97,144.88,12.83]
[1723602202384,19.7283,144.97,144.88,12.83]
[1723602202570,6.8986,144.96,144.88,12.83]
[1723602202760,6.899,144.95,144.91,6.9007]
[1723602203268,20.0,144.94,144.91,6.9007]
[1723602203469,20.0,144.94,144.9,6.9012]
[1723602206393,20.0,144.94,144.91,6.9007]
[1723602206559,12.83,144.98,144.91,6.9007]
[1723602206758,20.0,144.97,144.91,6.9007]
[1723602207394,6.899,144.95,144.9,6.9012]
[1723602208593,6.8994,144.94,144.9,6.9012]
[1723602210284,6.8994,144.94,144.88,12.83]
[1723602210486,6.8999,144.93,144.87,22.1471]
[1723602210689,6.8999,144.93,144.88,6.9018]
[1723602210873,25.26711982,144.96,144.9,6.9013]
[1723602211065,26.899,144.95,144.9,6.9013]
[1723602211390,19.7285,144.96,144.91,6.9006]
[1723602211975,6.899,144.95,144.91,6.9006]
[1723602212174,6.899,144.95,144.9,6.9012]
[1723602212399,6.899,144.95,144.91,6.9007]
[1723602212691,6.899,144.95,144.9,6.9012]
[1723602214106,6.899,144.95,144.91,6.9008]
[1723602216205,6.8985,144.96,144.91,6.9008]
[1723602216573,6.898,144.97,144.92,6.9002]
[1723602216795,6.8975,144.98,144.93,6.8997]
[1723602217478,6.8975,144.98,144.87,22.1471]
[1723602217479,6.8982,144.97,144.92,6.9003]
[1723602217871,6.8982,144.97,144.93,6.8998]